Cogmind - Beta 13 @@@ ROGUE MODE // 2024.07.20 @ 11:45:05 Player: Johge Result: Core destroyed Performance ------------- Evolutions (2) 1000 Regions Visited (4) 800 Robots Destroyed (29) 145 Value Destroyed (633) 633 Prototype IDs (3) 60 Alien Tech Used (0) 0 Bonus (0) 0 TOTAL SCORE: 2638 Bonus ------- None Cogmind --------- Core Integrity 0/550 Matter 254/300 Energy 365/415 System Corruption 0% Temperature Critical (560) Movement Core (1150) Ox22 Location -8/Materials Parts ------- > --- POWER (2) -------- Ion Engine Improved Ion Engine > --- PROPULSION (4) --- (None) > --- UTILITY (3) ------ High-capacity Storage Unit Signal Interpreter Hardened Medium Armor Plating > --- WEAPON (2) ------- Improved Medium Laser Advanced Beam Cannon > --- INVENTORY (20) --- Improved Heat Sink Medium Matter Pod (100) Rocket Launcher Datajack Peak State ------------ > --- POWER ------------ Improved Ion Engine Improved Ion Engine > --- PROPULSION ------- Light Treads Light Treads Light Treads Light Treads > --- UTILITY ---------- High-capacity Storage Unit Signal Interpreter Targeting Computer > --- WEAPON ----------- Improved Medium Laser Advanced Beam Cannon > --- INVENTORY -------- Ion Engine Improved Ion Engine Light Treads Improved Heat Sink Hardened Medium Armor Plating Improved EM Shotgun Advanced Beam Cannon Battle Cannon Rocket Launcher Datajack [Rating: 19] Favorites ----------- Power Ion Engine Engine Ion Engine Propulsion Light Treads Treads Light Treads Utility Small Storage Unit Device Improved Heat Sink Storage Small Storage Unit Processor Signal Interpreter Protection Hardened Medium Armor Plating Weapon Assault Rifle Energy Gun Improved EM Shotgun Energy Cannon Advanced Beam Cannon Ballistic Gun Assault Rifle Ballistic Cannon Battle Cannon Build | -11 -10 -10 -9 -8 ------- Run | Yrd Mat Min Mat Mat Slots Evolved 4 | . . . 2 2 Power 1 | . . . . 1 Propulsion 2 | . . . 2 . Utility 1 | . . . . 1 Weapon . | . . . . . Parts Attached 32 | 6 3 2 7 14 Power 7 | 1 1 1 1 3 Engine 7 | 1 1 1 1 3 Core . | . . . . . Reactor . | . . . . . Propulsion 6 | 2 . . 2 2 Treads 6 | 2 . . 2 2 Leg . | . . . . . Wheel . | . . . . . Hover . | . . . . . Flight . | . . . . . Utility 7 | 1 2 . 2 2 Device 2 | . 2 . . . Storage 2 | 1 . . 1 . Processor 2 | . . . 1 1 Hackware . | . . . . . Protection 1 | . . . . 1 Artifact . | . . . . . Weapon 12 | 2 . 1 2 7 Energy Gun 4 | . . . 1 3 Energy Cannon 4 | . . . 1 3 Ballistic Gun 2 | 2 . . . . Ballistic Cannon 2 | . . 1 . 1 Launcher . | . . . . . Special Weapon . | . . . . . Impact Weapon . | . . . . . Slashing Weapon . | . . . . . Piercing Weapon . | . . . . . Special Melee Weapon . | . . . . . Unidentified Prototypes 3 | . . . 2 1 Parts Lost 13 | . . 1 . 12 Power 3 | . . 1 . 2 Propulsion 6 | . . . . 6 Utility 1 | . . . . 1 Weapon 3 | . . . . 3 Highest Loss Streak 10 | . . 1 . 10 To Critical Strikes . | . . . . . Average Slot Usage (%) 94 | . 98 100 84 92 Engine 14 | . 13 14 11 17 Treads 29 | . 28 28 29 30 Device 9 | . 13 14 10 . Storage 11 | . 14 14 11 9 Processor 4 | . . . . 17 Energy Gun 2 | . . . 4 4 Energy Cannon 5 | . . . 8 11 Ballistic Gun 12 | . 28 19 2 . Ballistic Cannon 4 | . . 8 6 . Naked Turns . | . . . . . Heaviest Build 62 | 13 14 16 55 62 Greatest Support 80 | 40 40 40 80 80 Greatest Overweight (x) 16 | . . . . 16 Average Overweight (x) . | . . . . . Largest Inventory Capacity 20 | 8 8 8 20 20 Average Capacity 12 | 6 8 8 12 20 Most Carried 11 | 5 7 8 8 11 Average Carried 6 | 1 3 7 7 8 Final Capacity 20 | 8 8 8 20 20 Final Carried 8 | 1 7 7 8 4 Class Distribution -------------------- 68% | Mutant 31% | Scavenger-Mutant Dominant Class ---------------- Mutant | -10/Materials Mutant | -10/Mines Mutant | -9/Materials Scavenger-Mutant | -8/Materials Resources | -11 -10 -10 -9 -8 ----------- Run | Yrd Mat Min Mat Mat Matter Collected 796 | 234 177 87 167 131 Remotely . | . . . . . Salvage Created 754 | . 262 1 255 236 Parts 64 | . 25 1 26 12 Haulers Intercepted 1 | . . . 1 . Recyclers Shooed . | . . . . . Parts Field Recycled . | . . . . . Retrieved Matter . | . . . . . Parts Self-Destructed . | . . . . . Prevented . | . . . . . Kills | -11 -10 -10 -9 -8 ------- Run | Yrd Mat Min Mat Mat Combat Hostiles Destroyed 21 | . 9 1 6 5 Guns 10 | . 9 1 . . Cannons 10 | . . . 6 4 Classes Destroyed 10 | . 4 . 5 1 Worker 2 | . . . 1 1 Builder 1 | . 1 . . . Hauler 1 | . . . 1 . Recycler 1 | . . . 1 . Operator 2 | . 1 . 1 . Watcher 1 | . . . 1 . Swarmer 10 | . 6 1 3 . Grunt 6 | . 3 . 1 2 Duelist 1 | . . . . 1 Sentry 4 | . . . 2 2 Best Kill Streak 7 | . 3 1 7 2 Combat Bots Only 3 | . 3 1 3 2 Max Kills in Single Turn 1 | . 1 1 1 1 Gunslinging . | . . . . . Exploded . | . . . . . Melee . | . . . . . Uniques/NPCs Destroyed . | . . . . . Combat | -11 -10 -10 -9 -8 -------- Run | Yrd Mat Min Mat Mat Hostile Shots Fired 226 | . 67 10 23 126 Missed 44 | . 23 2 5 14 Damage Taken 2803 | . 413 67 170 2153 Core 708 | . 67 26 49 566 Absorbed by Shields . | . . . . . Regen/Repaired (Parts) 30 | . . . . 30 Core Remaining (%) 83 | 100 . 62 87 . Volleys Fired 100 | . 36 6 24 34 Largest 2 | . 2 2 2 2 Hottest 136 | . 40 59 113 136 Shots Fired 186 | . 72 13 44 57 Gun 106 | . 72 7 13 14 Cannon 80 | . . 6 31 43 Launcher . | . . . . . Special . | . . . . . Kinetic 118 | . 72 13 25 8 Thermal 59 | . . . 15 44 Explosive . | . . . . . Electromagnetic 9 | . . . 4 5 Robot Hit Streak 16 | . 14 3 5 16 Robot Miss Streak 7 | . 3 7 2 3 Penetration Max . | . . . . . Secondary Targets 1 | . 1 . . . Max Gunslinging Chain 1 | . 1 . . . Shots Hit Robots 114 | . 45 4 27 38 Core Hits 43 | . 18 1 11 13 Critical Kills 1 | . . . . 1 Critical Parts Destroyed . | . . . . . Critical Strikes 1 | . . . . 1 Meltdown 1 | . . . . 1 Melee Attacks . | . . . . . Impact . | . . . . . Slashing . | . . . . . Piercing . | . . . . . Sneak Attacks . | . . . . . Combat Hostiles . | . . . . . Follow-up Attacks . | . . . . . Damage Inflicted 1951 | . 468 58 538 887 Guns 774 | . 468 25 100 181 Cannons 1175 | . . 33 436 706 Explosions . | . . . . . Melee . | . . . . . Ramming 2 | . . . 2 . Kinetic 978 | . 468 58 299 153 Thermal 861 | . . . 203 658 Explosive . | . . . . . Electromagnetic 110 | . . . 34 76 Impact . | . . . . . Slashing . | . . . . . Piercing . | . . . . . Highest Corruption 1 | . 1 1 . . Average Corruption 1 | . 1 1 . . Corruption Purged . | . . . . . Corruption Blocked . | . . . . . Effects 6 | . 2 4 . . Message Errors 2 | . . 2 . . Heat Flow Errors 1 | . . 1 . . Parts Rejected 1 | . 1 . . . Data Loss (major) 1 | . 1 . . . Misfires 1 | . . 1 . . Overload Shots . | . . . . . Overflow Damage 44 | . . 3 27 14 Projectiles 44 | . . 3 27 14 Explosions . | . . . . . Melee . | . . . . . Knockbacks 11 | . . 1 5 5 Impact . | . . . . . Kinetic 10 | . . 1 4 5 Secondary 1 | . . . 1 . Self-Inflicted Damage . | . . . . . Shots . | . . . . . Rammed . | . . . . . Targets Rammed 3 | . . . 3 . Kicked . | . . . . . Crushed 3 | . . . 3 . Highest Temperature 597 | . 11 169 28 597 Average Temperature 237 | . 5 86 6 283 Received Heat Transfer 1182 | . 120 . 54 1008 Effects 22 | . . . . 22 Shutdowns 8 | . . . . 8 Energy Bleed 1 | . . . . 1 Interference 6 | . . . . 6 Short Circuit 3 | . . . . 3 Damage (minor) 1 | . . . . 1 Damage (core) 3 | . . . . 3 Siege Activations . | . . . . . Robots Corrupted . | . . . . . Combat Hostiles . | . . . . . Parts Fried . | . . . . . Impact Corruptions . | . . . . . Robots Melted 1 | . . . . 1 Combat Hostiles 1 | . . . . 1 Parts Melted 5 | . . . . 5 Heat Transferred 1591 | . . . 370 1221 Parts Sabotaged . | . . . . . Parts Stolen . | . . . . . Parts Stripped . | . . . . . Power Chain Reactions . | . . . . . Alert | -11 -10 -10 -9 -8 ------- Run | Yrd Mat Min Mat Mat Peak Influence 230 | . 230 89 212 194 Initial 89 | . . 89 7 89 Average 105 | . 94 74 149 128 Maximum Alert Level 1 | . 1 . 1 . Low Security (%) 88 | 100 82 100 61 100 Level 1 11 | . 17 . 38 . Level 2 . | . . . . . Level 3 . | . . . . . Level 4 . | . . . . . Level 5 . | . . . . . High Security . | . . . . . Max Security . | . . . . . Squads Dispatched 2 | . 1 . 1 . Investigation 1 | . 1 . . . Extermination . | . . . . . Reinforcement 1 | . . . 1 . Assault . | . . . . . Garrison . | . . . . . Intercept . | . . . . . Searches Triggered . | . . . . . Construction Impeded . | . . . . . Haulers Reinforced . | . . . . . Active Scanning Responses . | . . . . . Cargo Convoy Interrupts . | . . . . . Stealth | -11 -10 -10 -9 -8 --------- Run | Yrd Mat Min Mat Mat Distress Signals 4 | . 2 . 1 1 Communications Jammed . | . . . . . Distress Signals . | . . . . . Times Spotted 31 | . 12 1 8 10 Peak Tracking Total 6 | . 6 1 4 4 Tactical Retreats . | . . . . . Traps | -11 -10 -10 -9 -8 ------- Run | Yrd Mat Min Mat Mat Traps Triggered . | . . . . . Indirectly . | . . . . . Trap Hack Attempts . | . . . . . Triggered . | . . . . . Disarmed . | . . . . . Reprogrammed . | . . . . . Reused . | . . . . . Traps Extracted . | . . . . . Installed . | . . . . . Triggered . | . . . . . Machines | -11 -10 -10 -9 -8 ---------- Run | Yrd Mat Min Mat Mat Machines Disabled . | . . . . . Max in Single Turn . | . . . . . Machines Repaired . | . . . . . Machines Dismantled . | . . . . . Machines Sabotaged . | . . . . . Overloaded Fab Kills . | . . . . . Hacking | -11 -10 -10 -9 -8 --------- Run | Yrd Mat Min Mat Mat Machines Accessed 6 | . 3 . 1 2 Terminals 5 | . 3 . 1 1 Fabricators . | . . . . . Repair Stations 1 | . . . . 1 Recycling Units . | . . . . . Scanalyzers . | . . . . . Garrison Access . | . . . . . Total Hacks 14 | . 5 . 2 7 Successful 9 | . 2 . 2 5 Failed 5 | . 3 . . 2 Catastrophic 1 | . 1 . . . Database Lockouts . | . . . . . Manual 4 | . 1 . . 3 Terminals 11 | . 5 . 2 4 Fabricators . | . . . . . Repair Stations 3 | . . . . 3 Recycling Units . | . . . . . Scanalyzers . | . . . . . Garrison Access . | . . . . . Terminal Hacks 6 | . 2 . 2 2 Record 1 | . . . . 1 Alert Level 2 | . 1 . 1 . Locate Traps 1 | . . . . 1 Zone Layout 2 | . 1 . 1 . Fabricator Hacks . | . . . . . Repair Station Hacks 3 | . . . . 3 Scan Component 2 | . . . . 2 Repair 1 | . . . . 1 Recycling Unit Hacks . | . . . . . Scanalyzer . | . . . . . Garrison Access Hacks . | . . . . . Unauthorized Hacks . | . . . . . Terminals . | . . . . . Fabricators . | . . . . . Repair Stations . | . . . . . Recycling Units . | . . . . . Scanalyzers . | . . . . . Garrison Access . | . . . . . Data Cores Recovered 1 | . 1 . . . Used 1 | . 1 . . . Hacking Detections 5 | . 3 . 1 1 Full Trace Events 2 | . 1 . . 1 Feedback Events 1 | . 1 . . . Corruption 1 | . 1 . . . Feedback Blocked . | . . . . . Robot Schematics Acquired . | . . . . . Robots Built . | . . . . . Authchips . | . . . . . Time . | . . . . . Total Robot Build Rating . | . . . . . Part Schematics Acquired . | . . . . . Parts Built . | . . . . . Authchips . | . . . . . Time . | . . . . . Total Part Build Rating . | . . . . . Parts Repaired 1 | . . . . 1 Time 38 | . . . . 38 Parts Recycled . | . . . . . Recycled Matter . | . . . . . Retrieved Matter . | . . . . . Retrieved Components . | . . . . . Parts Scanalyzed . | . . . . . Part Schematics Acquired . | . . . . . Parts Damaged . | . . . . . Bothacking | -11 -10 -10 -9 -8 ------------ Run | Yrd Mat Min Mat Mat Used RIF Installer . | . . . . . Robots Hacked . | . . . . . Non-combat . | . . . . . Combat . | . . . . . Robot Hacks Applied . | . . . . . Relay Couplers Released . | . . . . . Fabnet Peak Effective % . | . . . . . Robots Rewired . | . . . . . Allies Hacked . | . . . . . Hacks Repelled . | . . . . . Allies | -11 -10 -10 -9 -8 -------- Run | Yrd Mat Min Mat Mat Total Allies . | . . . . . Largest Group . | . . . . . Highest-Rated Group . | . . . . . Highest-Rated Ally . | . . . . . Total Orders . | . . . . . Ally Attacks . | . . . . . Total Damage . | . . . . . Kills . | . . . . . Allies Corrupted . | . . . . . Allies Melted . | . . . . . Intel | -11 -10 -10 -9 -8 ------- Run | Yrd Mat Min Mat Mat Robot Analysis Total . | . . . . . Derelict Logs Recovered . | . . . . . Drone Launches . | . . . . . Drone Recoveries . | . . . . . Exploration | -11 -10 -10 -9 -8 ------------- Run | Yrd Mat Min Mat Mat Turns Passed 1736 | 69 333 503 378 453 Spaces Moved 781 | 38 132 300 179 132 Core 8 | 7 . . . 1 Treads 773 | 31 132 300 179 131 Legs . | . . . . . Wheels . | . . . . . Hover . | . . . . . Flight . | . . . . . Fastest Speed 50 | 50 160 160 160 160 Average Speed 164 | 139 160 160 160 191 Slowest Speed 850 | 160 160 160 160 850 Overloaded Moves . | . . . . . Propulsion Burnouts . | . . . . . Robots Hopped . | . . . . . Cave-ins Triggered . | . . . . . Exploration Rate (%) 26 | 4 24 62 22 18 Regions Visited 4 Branch Regions 1 Pre-discovered Areas . | . . . . . Known Exits Taken 1 | . . . 1 . Unknown Exits Taken 3 | 1 1 1 . . Scrap Searched 1 | . . 1 . . Spaces Dug . | . . . . . Terrain Destroyed 1 | . . . 1 . Melee . | . . . . . Projectile 1 | . . . 1 . AOE . | . . . . . Terrain Rammed . | . . . . . Walls Destroyed . | . . . . . Machines Disabled . | . . . . . Actions | -11 -10 -10 -9 -8 --------- Run | Yrd Mat Min Mat Mat Total 1053 | 54 189 312 225 273 Wait 101 | 4 11 . . 86 Move 777 | 37 131 299 178 132 Hop . | . . . . . Pick Up 33 | 7 8 3 8 7 Fast Attach . | . . . . . Attach 21 | 6 2 1 2 10 Detach . | . . . . . Swap 11 | . 1 1 5 4 Drop 7 | . . 2 5 . Fire 100 | . 36 6 24 34 Melee . | . . . . . Ram . | . . . . . Kick . | . . . . . Crush 3 | . . . 3 . Escape Stasis . | . . . . . Rewire . | . . . . . Trap . | . . . . . Miscellaneous . | . . . . . Route ------- -11/Scrapyard -10/Materials -10/Mines -9/Materials (discovered 2 exits: *Mat / [*Sto]) -8/Materials (discovered 1 exit: [*Fac]) History --------- Turn | Location | Event 11 | -11/Scrapyard | Discovered new exit (range 15) 70 | -11/Scrapyard | Entered Materials 241 | -10/Materials | Discovered new exit (range 12) 303 | -10/Materials | Build established: Mutant 403 | -10/Materials | Entered Mines 485 | -10/Mines | Met a Derelict bent on vengeance 595 | -10/Mines | Received a Rocket Launcher from a helpful Derelict 614 | -10/Mines | A weapon hastily lodged in a ceiling crevice suddenly fell to the ground 724 | -10/Mines | Assembled infested the area 898 | -10/Mines | Discovered new exit (range 6) 906 | -10/Mines | Entered Materials 906 | -9/Materials | Evolved 2 slots: Propulsion x2 1059 | -9/Materials | Discovered new exit (range 11) 1247 | -9/Materials | Discovered new exit (range 13) 1266 | -9/Materials | Identified exit to Materials 1284 | -9/Materials | Entered another Materials area 1284 | -8/Materials | Evolved 2 slots: Power x1, Utility x1 1361 | -8/Materials | Repaired Imp. Heat Sink 1441 | -8/Materials | Build established: Scavenger-Mutant 1645 | -8/Materials | Discovered new exit (range 13) 1705 | -8/Materials | Core integrity fell below 50% 1731 | -8/Materials | Core integrity fell below 20% 1738 | -8/Materials | Core destroyed Last Messages --------------- Broken Adv. Beam Cannon destroyed. K-01 Serf collects debris. Power failure, Imp. Ion Engine shutdown. K-01 Serf collects debris. Critical hit (Burn: +37). Power failure, Ion Engine shutdown. Aluminum Leg melted. G-47 Trooper destroyed. K-01 Serf collects debris. Adv. Beam Cannon broken. Overheating: Short circuit. Overheating: Core damaged (-88). Overheating: Hcp. Storage Unit damaged (-171). K-01 Serf collects debris. Overheating: System interference. Imp. Medium Laser temporarily disabled. K-01 Serf collects debris. Power failure, Ion Engine shutdown. K-01 Serf collects debris. Overheating: Core damaged (-93). Map ----- +----------------------------------------------------+ | ????????????????????????????????????????????# #? | | ????????????????????????????????????????????# ## | | ????????????????????????????????????????????# | | ????????????????????????????????????????????# | | ????????????????????????????????????????????# | | ????????????????????????????????????????????# | | ?????????????????????????????????? ##########^ | | ?????????????????????????????????? # #^^ | | ?????????????????????????????????? #[ """ T # | | ?????????????????????????????????? # """ # [ | | ?????????????????????????????????? # """!% +% [ | | ?????????????????????????????????? # = %#! | | ?????????????????????????????????? # """ %!# ## | | ?????????????????????????????????# # """ = # ## | | ?????????????????????????????????# # """ # ## | | ?????????????????????????????????# # # !%## | | ?????????????????????????????????# ####### ## ## | | ????????????????????###########??# #?????#### ## | | ????????????????????# #### #???????## ## | | ????????????????????# ## ######### # | | ????????????????????# + # | | ????????????????????# k ## # | | ????????????????????# ## # | | ????????????????????# % g ## ### # | | ????????????????????# %=u ## #?####### | | ????????????????????# @k% ## #???????? | | ??????????????????#########+### #???????? | | ??????????? ^ #???????? | | ??????????? #???????? | | ??????????? #???????? | | ????????????#####+### """ ^ """ ???????? | | ????????????????????# """"" """"" #??????? | | ????????????????????# """"" """"" #??????? | | ????????????????????#] """"" """"" #??????? | | ????????????????????# """ ""? #??????? | | ????????????????????# ???? ? ??????? | | ????????????????????# ?????? ?? ???????? | | ????????????????????# ???????? ?????????????? | | ????????????????????# ?????????####????????????? | | ????????????????????#